fUST/lending_fUST_20250214
["ID","MTS","AMOUNT","RATE_DAILY","PERIOD"]
[353035240,1739502644746,-1172.873605,0.00014163,2]
[353035241,1739502644756,-151.0,0.00014163,2]
[353035242,1739502644766,-585.41037214,0.00014187,2]
[353035243,1739502644775,-151.0,0.00014189,2]
[353035244,1739502644784,-170.857251,0.00014189,2]
[353035245,1739502644797,-170.857251,0.00014189,2]
[353035246,1739502644808,-344.870529,0.00014189,2]
[353035247,1739502644820,-344.870529,0.00014189,2]
[353035248,1739502644830,-377.649898,0.00014189,2]
[353035249,1739502644839,-377.649898,0.00014189,2]
[353035250,1739502644851,-1077.026525,0.00014189,2]
[353035251,1739502644861,-1077.026525,0.00014189,2]
[353035252,1739502644871,-211.587828,0.00014189,2]
[353035253,1739502644881,-211.587828,0.00014189,2]
[353035254,1739502644891,-151.0,0.00014189,2]
[353035255,1739502644902,-151.0,0.00014189,2]
[353035256,1739502644914,-272.11244,0.0001419,2]
[353035257,1739502644923,-272.11244,0.0001419,2]
[353035258,1739502644933,-650.225686,0.0001419,2]
[353035259,1739502644942,-586.63958,0.0001419,2]
[353035260,1739502644952,-586.63958,0.0001419,2]
[353035261,1739502644961,-318.096292,0.0001419,2]
[353035262,1739502644971,-386.910573,0.0001419,2]
[353035263,1739502644980,-386.910573,0.0001419,2]
[353035264,1739502644989,-405.677941,0.00014191,2]
[353035265,1739502644998,-405.677941,0.00014191,2]
[353035266,1739502645008,-272.11244,0.00014191,2]
[353035267,1739502645018,-272.11244,0.00014191,2]
[353035268,1739502645029,-650.225686,0.00014191,2]
[353035269,1739502645040,-586.63958,0.00014191,2]
[353035270,1739502645051,-586.63958,0.00014191,2]
[353035271,1739502645060,-318.096292,0.00014191,2]
[353035272,1739502645070,-386.910573,0.00014191,2]
[353035273,1739502645079,-386.910573,0.00014191,2]
[353035274,1739502645088,-151.0,0.00014191,2]
[353035275,1739502645097,-909.293133,0.00014191,2]
[353035276,1739502645110,-909.293133,0.00014191,2]
[353035277,1739502645122,-724.009696,0.00014191,2]
[353035278,1739502645132,-188.59131,0.00014191,2]
[353035279,1739502645143,-500.0,0.00014191,2]
[353035280,1739502645153,-188.59131,0.00014191,2]
[353035281,1739502645163,-151.0,0.00014191,2]
[353035282,1739502645172,-170.857251,0.00014191,2]
[353035283,1739502645181,-170.857251,0.00014191,2]
[353035284,1739502645190,-344.870529,0.00014191,2]
[353035285,1739502645203,-344.870529,0.00014191,2]
[353035286,1739502645212,-377.649898,0.00014191,2]
[353035287,1739502645221,-377.649898,0.00014191,2]
[353035288,1739502645230,-318.924386,0.00014191,2]
[353035289,1739502645241,-318.924386,0.00014191,2]
[353035290,1739502645250,-1077.026525,0.00014191,2]
[353035291,1739502645259,-1077.026525,0.00014191,2]
[353035292,1739502645268,-211.587828,0.00014191,2]
[353035293,1739502645278,-211.587828,0.00014191,2]
[353035294,1739502645287,-151.0,0.00014191,2]
[353035295,1739502645296,-151.0,0.00014191,2]
[353035296,1739502645305,-356.538573,0.00014191,2]
[353035297,1739502645315,-356.538573,0.00014191,2]
[353035298,1739502645324,-1172.873605,0.00014191,2]
[353035299,1739502645334,-1172.873605,0.00014191,2]
[353035300,1739502645343,-151.0,0.00014191,2]
[353035301,1739502645352,-151.0,0.00014191,2]
[353035302,1739502645362,-151.0,0.00014191,2]
[353035303,1739502645371,-500.0,0.00014191,2]
[353035304,1739502645380,-151.0,0.00014191,2]
[353035305,1739502645391,-151.0,0.00014191,2]
[353035306,1739502645400,-500.0,0.00014191,2]
[353035307,1739502645410,-1056.482873,0.00014191,2]
[353035308,1739502645421,-1056.482873,0.00014191,2]
[353035309,1739502645430,-548.59,0.00014191,2]
[353035310,1739502645439,-1056.482873,0.00014191,2]
[353035311,1739502645448,-1056.482873,0.00014191,2]
[353035312,1739502645457,-500.0,0.00014191,2]
[353035313,1739502645467,-652.82,0.00014191,2]
[353035314,1739502645477,-151.0,0.00014191,2]
[353035315,1739502645486,-151.0,0.00014191,2]
[353035316,1739502645495,-500.0,0.00014191,2]
[353035317,1739502645504,-404.410496,0.00014191,2]
[353035318,1739502645513,-404.410496,0.00014191,2]
[353035319,1739502645523,-404.410496,0.00014191,2]
[353035320,1739502645532,-404.410496,0.00014191,2]
[353035321,1739502645541,-393.040803,0.00014191,2]
[353035322,1739502645550,-393.040803,0.00014191,2]
[353035323,1739502645561,-393.040803,0.00014191,2]
[353035324,1739502645570,-393.040803,0.00014191,2]
[353035325,1739502645584,-1816.876959,0.00014191,2]
[353035326,1739502645594,-1816.876959,0.00014191,2]
[353035327,1739502645603,-1816.876959,0.00014191,2]
[353035328,1739502645614,-1816.876959,0.00014191,2]
[353035329,1739502645624,-500.0,0.00014191,2]
[353035330,1739502645633,-3200.7,0.00014191,2]
[353035331,1739502645643,-502.97,0.00014191,2]
[353035332,1739502645653,-500.0,0.00014191,2]
[353035333,1739502645663,-225.006275,0.00014191,2]
[353035334,1739502645673,-225.006275,0.00014191,2]
[353035335,1739502645683,-748.07,0.00014191,2]
[353035336,1739502645692,-225.006275,0.00014191,2]
[353035337,1739502645702,-225.006275,0.00014191,2]
[353035338,1739502645711,-241.53378,0.00014191,2]
[353035339,1739502645723,-241.53378,0.00014191,2]
[353035340,1739502645733,-151.0,0.00014191,2]
[353035341,1739502645744,-151.0,0.00014191,2]
[353035342,1739502645754,-241.53378,0.00014191,2]
[353035343,1739502645764,-241.53378,0.00014191,2]
[353035344,1739502645774,-6828.15,0.00014191,2]
[353035345,1739502645785,-1607.09,0.00014191,2]
[353035346,1739502645795,-1769.89,0.00014191,2]
[353035347,1739502645806,-592.56,0.00014191,2]
[353035348,1739502645815,-479.999,0.00014199,2]
[353035349,1739502645826,-251.2144373,0.00014219,2]
[353035350,1739502645836,-500.0,0.00014246,2]
[353035351,1739502645846,-809.76407656,0.00014249,2]
[353035352,1739502645856,-466.517645,0.00014273,2]
[353035353,1739502645865,-466.517645,0.00014273,2]
[353035354,1739502645874,-272.11244,0.00014273,2]
[353035355,1739502645884,-272.11244,0.00014273,2]
[353035356,1739502645893,-650.225686,0.00014273,2]
[353035357,1739502645902,-382.342922,0.00014273,2]
[353035358,1739502645912,-382.342922,0.00014273,2]
[353035359,1739502645923,-586.63958,0.00014273,2]
[353035360,1739502645933,-586.63958,0.00014273,2]
[353035361,1739502645943,-318.096292,0.00014273,2]
[353035362,1739502645952,-386.910573,0.00014273,2]
[353035363,1739502645962,-386.910573,0.00014273,2]
[353035364,1739502645971,-151.0,0.00014273,2]
[353035365,1739502645980,-909.293133,0.00014273,2]
[353035366,1739502645991,-909.293133,0.00014273,2]
[353035367,1739502646000,-724.009696,0.00014273,2]
[353035368,1739502646012,-188.59131,0.00014273,2]
[353035369,1739502646023,-500.0,0.00014273,2]
[353035370,1739502646033,-188.59131,0.00014273,2]
[353035371,1739502646043,-151.0,0.00014273,2]
[353035372,1739502646053,-170.857251,0.00014273,2]
[353035373,1739502646063,-170.857251,0.00014273,2]
[353035374,1739502646073,-344.870529,0.00014273,2]
[353035375,1739502646083,-344.870529,0.00014273,2]
[353035376,1739502646093,-377.649898,0.00014273,2]
[353035377,1739502646102,-377.649898,0.00014273,2]
[353035378,1739502646111,-318.924386,0.00014273,2]
[353035379,1739502646123,-318.924386,0.00014273,2]
[353035380,1739502646133,-1077.026525,0.00014273,2]
[353035381,1739502646144,-1077.026525,0.00014273,2]
[353035382,1739502646154,-211.587828,0.00014273,2]
[353035383,1739502646163,-211.587828,0.00014273,2]
[353035384,1739502646175,-152.032047,0.00014273,2]
[353035385,1739502646184,-151.0,0.00014273,2]
[353035386,1739502646193,-151.0,0.00014273,2]
[353035387,1739502646203,-356.538573,0.00014273,2]
[353035388,1739502646212,-356.538573,0.00014273,2]
[353035389,1739502646223,-356.538573,0.00014273,2]
[353035390,1739502646233,-356.538573,0.00014273,2]
[353035391,1739502646243,-1172.873605,0.00014273,2]
[353035392,1739502646254,-1172.873605,0.00014273,2]
[353035393,1739502646265,-1172.873605,0.00014273,2]
[353035394,1739502646274,-1172.873605,0.00014273,2]
[353035395,1739502646284,-258.668222,0.00014273,2]
[353035396,1739502646293,-151.0,0.00014273,2]
[353035397,1739502646303,-151.0,0.00014273,2]
[353035398,1739502646312,-233.38714,0.00014273,2]
[353035399,1739502646323,-500.0,0.00014273,2]
[353035400,1739502646332,-151.0,0.00014273,2]
[353035401,1739502646342,-500.0,0.00014273,2]
[353035402,1739502646353,-548.59,0.00014273,2]
[353035403,1739502646363,-1056.482873,0.00014273,2]
[353035404,1739502646374,-1056.482875,0.00014273,2]
[353035405,1739502646385,-500.0,0.00014273,2]
[353035406,1739502646394,-652.82,0.00014273,2]
[353035407,1739502646404,-151.693286,0.00014273,2]
[353035408,1739502646413,-500.0,0.00014273,2]
[353035409,1739502646425,-404.410496,0.00014273,2]
[353035410,1739502646435,-404.410497,0.00014273,2]
[353035411,1739502646444,-393.040803,0.00014273,2]
[353035412,1739502646453,-393.040802,0.00014273,2]
[353035413,1739502646466,-1816.876959,0.00014273,2]
[353035414,1739502646475,-1816.876959,0.00014273,2]
[353035415,1739502646485,-500.0,0.00014273,2]
[353035416,1739502646495,-3200.7,0.00014273,2]
[353035417,1739502646505,-502.97,0.00014273,2]
[353035418,1739502646514,-500.0,0.00014273,2]
[353035419,1739502646524,-225.006275,0.00014273,2]
[353035420,1739502646533,-748.07,0.00014273,2]
[353035421,1739502646543,-225.006282,0.00014273,2]
[353035422,1739502646553,-241.53378,0.00014273,2]
[353035423,1739502646563,-152.116093,0.00014273,2]
[353035424,1739502646574,-241.533784,0.00014273,2]
[353035425,1739502646586,-6828.15,0.00014273,2]
[353035426,1739502646596,-1607.09,0.00014273,2]
[353035427,1739502646606,-1769.89,0.00014273,2]
[353035428,1739502646616,-592.56,0.00014273,2]
[353035429,1739502646627,-151.868164,0.00014279,2]
[353035430,1739502646636,-538.0,0.0001428,2]
[353035431,1739502646645,-1970.0,0.0001428,2]
[353035432,1739502646656,-1189.878,0.0001428,2]
[353035433,1739502646667,-151.11196962,0.00014282,2]
[353035434,1739502646677,-5114.13166683,0.000143,2]
[353035435,1739502646687,-233.20454876,0.0001431,2]
[353035436,1739502646698,-160.0,0.00014355,2]
[353035437,1739502646709,-500.0,0.00014355,2]
[353035438,1739502646719,-189.69494136,0.00014355,2]
[353035439,1739502646729,-500.0,0.00014355,2]
[353035440,1739502646739,-500.0,0.00014355,2]
[353035441,1739502646750,-500.0,0.00014355,2]
[353035442,1739502646759,-430.42834337,0.00014355,2]
[353035443,1739502646769,-405.677941,0.00014356,2]
[353035444,1739502646779,-405.677941,0.00014356,2]
[353035445,1739502646788,-405.677941,0.00014356,2]
[353035446,1739502646798,-405.677941,0.00014356,2]
[353035447,1739502646807,-466.517645,0.00014356,2]
[353035448,1739502646817,-466.517645,0.00014356,2]
[353035449,1739502646827,-466.517645,0.00014356,2]
[353035450,1739502646836,-466.517645,0.00014356,2]
[353035451,1739502646846,-272.11244,0.00014356,2]
[353035452,1739502646855,-272.11244,0.00014356,2]
[353035453,1739502646865,-272.11244,0.00014356,2]
[353035454,1739502646875,-272.11244,0.00014356,2]
[353035455,1739502646884,-650.225686,0.00014356,2]
[353035456,1739502646894,-650.225686,0.00014356,2]
[353035457,1739502646903,-382.342922,0.00014356,2]
[353035458,1739502646914,-382.342922,0.00014356,2]
[353035459,1739502646925,-382.342922,0.00014356,2]
[353035460,1739502646934,-382.342922,0.00014356,2]
[353035461,1739502646943,-586.63958,0.00014356,2]
[353035462,1739502646952,-586.63958,0.00014356,2]
[353035463,1739502646961,-586.63958,0.00014356,2]
[353035464,1739502646970,-586.63958,0.00014356,2]
[353035465,1739502646980,-318.096292,0.00014356,2]
[353035466,1739502646989,-318.096292,0.00014356,2]
[353035467,1739502647107,-318.096292,0.00014356,2]
[353035468,1739502647118,-386.910573,0.00014356,2]
[353035469,1739502647127,-386.910573,0.00014356,2]
[353035470,1739502647138,-386.910573,0.00014356,2]
[353035471,1739502647147,-386.910573,0.00014356,2]
[353035472,1739502647158,-151.0,0.00014356,2]
[353035473,1739502647168,-151.0,0.00014356,2]
[353035474,1739502647178,-151.0,0.00014356,2]
[353035475,1739502647188,-909.293133,0.00014356,2]
[353035476,1739502647197,-909.293133,0.00014356,2]
[353035477,1739502647207,-909.293133,0.00014356,2]
[353035478,1739502647216,-909.293133,0.00014356,2]
[353035479,1739502647226,-909.293133,0.00014356,2]
[353035480,1739502647235,-909.293133,0.00014356,2]
[353035481,1739502647245,-724.009696,0.00014356,2]
[353035482,1739502647254,-724.009696,0.00014356,2]
[353035483,1739502647264,-724.009696,0.00014356,2]
[353035484,1739502647274,-188.59131,0.00014356,2]
[353035485,1739502647284,-188.59131,0.00014356,2]
[353035486,1739502647293,-188.59131,0.00014356,2]
[353035487,1739502647303,-500.0,0.00014356,2]
[353035488,1739502647312,-188.59131,0.00014356,2]
[353035489,1739502647322,-188.59131,0.00014356,2]
[353035490,1739502647332,-188.59131,0.00014356,2]
[353035491,1739502647342,-170.857251,0.00014356,2]
[353035492,1739502647352,-170.857251,0.00014356,2]
[353035493,1739502647361,-170.857251,0.00014356,2]
[353035494,1739502647371,-170.857251,0.00014356,2]
[353035495,1739502647381,-344.870529,0.00014356,2]
[353035496,1739502647391,-344.870529,0.00014356,2]
[353035497,1739502647401,-344.870529,0.00014356,2]
[353035498,1739502647411,-344.870529,0.00014356,2]
[353035499,1739502647422,-344.870529,0.00014356,2]
[353035500,1739502647432,-344.870529,0.00014356,2]
[353035501,1739502647442,-377.649898,0.00014356,2]
[353035502,1739502647452,-377.649898,0.00014356,2]
[353035503,1739502647462,-377.649898,0.00014356,2]
[353035504,1739502647472,-377.649898,0.00014356,2]
[353035505,1739502647482,-377.649898,0.00014356,2]
[353035506,1739502647493,-377.649898,0.00014356,2]
[353035507,1739502647503,-318.924386,0.00014356,2]
[353035508,1739502647512,-318.924386,0.00014356,2]
[353035509,1739502647523,-318.924386,0.00014356,2]
[353035510,1739502647532,-318.924386,0.00014356,2]
[353035511,1739502647543,-318.924386,0.00014356,2]
[353035512,1739502647553,-318.924386,0.00014356,2]
[353035513,1739502647564,-1077.026525,0.00014356,2]
[353035514,1739502647575,-1077.026525,0.00014356,2]
[353035515,1739502647587,-1077.026525,0.00014356,2]
[353035516,1739502647596,-1077.026525,0.00014356,2]
[353035517,1739502647607,-211.587828,0.00014356,2]
[353035518,1739502647618,-211.587828,0.00014356,2]
[353035519,1739502647628,-211.587828,0.00014356,2]
[353035520,1739502647638,-211.587833,0.00014356,2]
[353035521,1739502647649,-290.483198,0.00014356,2]
[353035522,1739502647660,-356.538573,0.00014356,2]
[353035523,1739502647672,-356.538568,0.00014356,2]
[353035524,1739502647682,-1172.873605,0.00014356,2]
[353035525,1739502647692,-1172.873599,0.00014356,2]
[353035526,1739502647701,-500.0,0.00014356,2]
[353035527,1739502647711,-500.0,0.00014356,2]
[353035528,1739502647721,-548.59,0.00014356,2]
[353035529,1739502647731,-500.0,0.00014356,2]
[353035530,1739502647741,-652.82,0.00014356,2]
[353035531,1739502647751,-500.0,0.00014356,2]
[353035532,1739502647761,-500.0,0.00014356,2]
[353035533,1739502647770,-3200.7,0.00014356,2]
[353035534,1739502647780,-502.97,0.00014356,2]
[353035535,1739502647790,-500.0,0.00014356,2]
[353035536,1739502647800,-748.07,0.00014356,2]
[353035537,1739502647810,-6828.15,0.00014356,2]
[353035538,1739502647820,-1607.09,0.00014356,2]
[353035539,1739502647830,-1769.89,0.00014356,2]
[353035540,1739502647839,-592.56,0.00014356,2]
[353035541,1739502647849,-247361.2106185,0.00014356,2]
[353035542,1739502647859,-700.0,0.00014363,2]
[353035543,1739502647869,-500.0,0.00014373,2]
[353035544,1739502647880,-500.0,0.00014373,2]
[353035545,1739502647889,-500.0,0.00014373,2]
[353035546,1739502647900,-500.0,0.00014373,2]
[353035547,1739502647911,-160.0,0.00014399,2]
[353035548,1739502647926,-462322.70224609,0.000144,5]
[353035549,1739502647935,-151.0,0.000144,2]
[353035550,1739502647944,-151.0,0.000144,2]
[353035551,1739502647953,-151.0,0.000144,2]
[353035552,1739502647962,-3000.0,0.000144,30]
[353035553,1739502647971,-405.677941,0.000144,2]
[353035554,1739502647980,-405.677941,0.000144,2]
[353035555,1739502647989,-466.517645,0.000144,2]
[353035556,1739502647998,-466.517645,0.000144,2]
[353035557,1739502648007,-272.11244,0.000144,2]
[353035558,1739502648017,-272.11244,0.000144,2]
[353035559,1739502648027,-650.225686,0.000144,2]
[353035560,1739502648036,-650.225686,0.000144,2]
[353035561,1739502648046,-382.342922,0.000144,2]
[353035562,1739502648056,-382.342922,0.000144,2]
[353035563,1739502648066,-586.63958,0.000144,2]
[353035564,1739502648076,-586.63958,0.000144,2]
[353035565,1739502648086,-318.096292,0.000144,2]
[353035566,1739502648097,-318.096292,0.000144,2]
[353035567,1739502648106,-386.910573,0.000144,2]
[353035568,1739502648116,-386.910573,0.000144,2]
[353035569,1739502648126,-151.0,0.000144,2]
[353035570,1739502648135,-909.293133,0.000144,2]
[353035571,1739502648144,-909.293134,0.000144,2]
[353035572,1739502648153,-724.009693,0.000144,2]
[353035573,1739502648163,-188.59131,0.000144,2]
[353035574,1739502648174,-188.591311,0.000144,2]
[353035575,1739502648184,-170.857251,0.000144,2]
[353035576,1739502648193,-170.857244,0.000144,2]
[353035577,1739502648203,-344.870529,0.000144,2]
[353035578,1739502648213,-344.870526,0.000144,2]
[353035579,1739502648224,-377.649898,0.000144,2]
[353035580,1739502648236,-335.0,0.000144,5]
[353035581,1739502648247,-377.649891,0.000144,2]
[353035582,1739502648257,-318.924386,0.000144,2]
[353035583,1739502648268,-318.924393,0.000144,2]
[353035584,1739502648279,-1077.026525,0.000144,2]
[353035585,1739502648289,-1077.026532,0.000144,2]
[353035586,1739502648300,-622.0,0.000144,2]
[353035587,1739502648310,-2491.4505,0.000144,2]
[353035588,1739502648321,-3000.0,0.0001441,30]
[353035589,1739502648332,-272.11244,0.0001441,2]
[353035590,1739502648343,-272.11244,0.0001441,2]
[353035591,1739502648355,-318.096292,0.0001441,2]
[353035592,1739502648367,-318.096292,0.0001441,2]
[353035593,1739502648378,-386.910573,0.0001441,2]
[353035594,1739502648388,-386.910573,0.0001441,2]
[353035595,1739502648399,-3000.0,0.0001442,30]
[353035596,1739502648410,-3000.0,0.0001443,30]
[353035597,1739502648421,-405.677941,0.0001443,2]
[353035598,1739502648431,-405.677941,0.0001443,2]
[353035599,1739502648442,-650.225686,0.0001443,2]
[353035600,1739502648453,-510.35903771,0.0001443,2]
[353035601,1739502648610,-139.86664829,0.0001443,2]
[353035602,1739502648621,-586.63958,0.0001443,2]
[353035603,1739502648633,-586.63958,0.0001443,2]
[353035604,1739502648643,-160.0,0.00014437,2]
[353035605,1739502648655,-150.23,0.00014438,2]
[353035606,1739502648666,-466.517645,0.00014438,2]
[353035607,1739502648677,-466.517645,0.00014438,2]
[353035608,1739502648688,-272.11244,0.00014438,2]
[353035609,1739502648698,-272.112447,0.00014438,2]
[353035610,1739502648709,-650.225686,0.00014438,2]
[353035611,1739502648719,-650.225679,0.00014438,2]
[353035612,1739502648730,-382.342922,0.00014438,2]
[353035613,1739502648741,-382.342922,0.00014438,2]
[353035614,1739502648752,-586.63958,0.00014438,2]
[353035615,1739502648762,-586.63959,0.00014438,2]
[353035616,1739502648773,-318.096292,0.00014438,2]
[353035617,1739502648784,-318.096282,0.00014438,2]
[353035618,1739502648794,-386.910573,0.00014438,2]
[353035619,1739502648805,-386.910573,0.00014438,2]
[353035620,1739502648816,-500.0,0.00014438,2]
[353035621,1739502648828,-500.0,0.00014438,2]
[353035622,1739502648838,-150.23,0.00014438,2]
[353035623,1739502648848,-150.23,0.00014438,2]
[353035624,1739502648859,-150.23,0.00014438,2]
[353035625,1739502648870,-300.22031174,0.00014438,2]
[353035626,1739502648881,-215.99005266,0.00014438,2]
[353035627,1739502648891,-500.0,0.00014438,2]
[353035628,1739502648902,-500.0,0.00014438,2]
[353035629,1739502648913,-548.59,0.00014438,2]
[353035630,1739502648924,-500.0,0.00014438,2]
[353035631,1739502648935,-652.82,0.00014438,2]
[353035632,1739502648945,-307.19260066,0.00014438,2]
[353035633,1739502648955,-500.0,0.00014438,2]
[353035634,1739502648966,-950.86166439,0.00014438,2]
[353035635,1739502648976,-150.23,0.00014438,2]
[353035636,1739502648987,-150.23,0.00014438,2]
[353035637,1739502648998,-500.0,0.00014438,2]
[353035638,1739502649009,-150.23,0.00014438,2]
[353035639,1739502649018,-500.0,0.00014438,2]
[353035640,1739502649028,-3200.7,0.00014438,2]
[353035641,1739502649039,-931.0,0.00014438,2]
[353035642,1739502649050,-500.0,0.00014438,2]
[353035643,1739502649060,-502.97,0.00014438,2]
[353035644,1739502649070,-150.23,0.00014438,2]
[353035645,1739502649080,-659.0,0.00014438,2]
[353035646,1739502649090,-500.0,0.00014438,2]
[353035647,1739502649100,-150.23,0.00014438,2]
[353035648,1739502649110,-748.07,0.00014438,2]
[353035649,1739502649122,-6828.15,0.00014438,2]
[353035650,1739502649133,-1607.09,0.00014438,2]
[353035651,1739502649143,-1769.89,0.00014438,2]
[353035652,1739502649155,-592.56,0.00014438,2]
[353035653,1739502649167,-3000.0,0.0001444,30]
[353035654,1739502649178,-3000.0,0.0001445,30]
[353035655,1739502649189,-3000.0,0.0001446,30]
[353035656,1739502649200,-3000.0,0.0001447,30]
[353035657,1739502649211,-405.677941,0.0001447,2]
[353035658,1739502649222,-405.677941,0.0001447,2]
[353035659,1739502649233,-500.0,0.00014473,2]
[353035660,1739502649244,-500.0,0.00014473,2]
[353035661,1739502649255,-3000.0,0.0001448,30]
[353035662,1739502649266,-3000.0,0.0001449,30]
[353035663,1739502649277,-160.0,0.00014499,2]
[353035664,1739502649288,-106754.72092712,0.000145,5]
[353035665,1739502649435,-491.553568,0.00013863,2]
[353035666,1739502649446,-491.553568,0.0001394,2]
[353035667,1739502649456,-491.553568,0.00013944,2]
[353035668,1739502649468,-491.553568,0.00013945,2]
[353035669,1739502649478,-491.553568,0.00014027,2]
[353035670,1739502649488,-491.553568,0.00014027,2]
[353035671,1739502649497,-16799.70734271,0.000145,5]
[353035672,1739502649509,-797.83329152,0.000145,5]
[353035725,1739503831883,-283.859491,0.00010685,2]
[353035726,1739503831893,-196.950509,0.000118,2]
[353035727,1739503831905,-303.049491,0.000118,2]
[353035728,1739503831915,-500.49445068,0.00012389,2]
[353035729,1739503831925,-798.01657669,0.000135,2]
[353035730,1739503831934,-436.38997199,0.00013598,2]
[353035731,1739503831944,-300.0,0.00013697,2]
[353035732,1739503831954,-504.32029485,0.00013698,2]
[353035733,1739503831964,-500.0,0.00013698,2]
[353035734,1739503831974,-500.0,0.00013698,2]
[353035735,1739503831984,-505.66286929,0.00013698,2]
[353035736,1739503831996,-629.11306875,0.00013698,2]
[353035737,1739503832011,-500.0,0.00013698,2]
[353035738,1739503832030,-609.62,0.00013698,2]
[353035739,1739503832039,-506.92977287,0.00013698,2]
[353035740,1739503832050,-500.0,0.00013698,2]
[353035741,1739503832061,-500.0,0.00013698,2]
[353035742,1739503832071,-510.24972579,0.00013698,2]
[353035743,1739503832083,-506.35915222,0.00013698,2]
[353035745,1739503832093,-500.0,0.00013698,2]
[353035747,1739503832103,-500.0,0.00013698,2]
[353035749,1739503832112,-500.0,0.00013698,2]
[353035751,1739503832122,-500.0,0.00013698,2]
[353035753,1739503832132,-502.89447481,0.00013698,2]
[353035755,1739503832142,-503.75588465,0.00013698,2]
[353035757,1739503832151,-281.23981447,0.00013698,2]
[353035759,1739503832162,-500.0,0.00013698,2]
[353035761,1739503832172,-505.06840567,0.00013698,2]
[353035763,1739503832182,-506.6919107,0.00013698,2]
[353035765,1739503832191,-509.20042152,0.00013698,2]
[353035767,1739503832201,-500.0,0.00013698,2]
[353035769,1739503832211,-505.11285977,0.00013698,2]
[353035771,1739503832220,-270.73585033,0.00013698,2]
[353035773,1739503832232,-235.62333146,0.00013698,2]
[353035776,1739503832242,-523.75669282,0.00013698,2]
[353035777,1739503832251,-513.00475666,0.00013698,2]
[353035779,1739503832261,-500.0,0.00013698,2]
[353035780,1739503832271,-595.63,0.00013698,2]
[353035781,1739503832282,-500.0,0.00013698,2]
[353035782,1739503832291,-500.0,0.00013698,2]
[353035783,1739503832300,-500.0,0.00013698,2]
[353035784,1739503832309,-500.0,0.00013698,2]
[353035785,1739503832319,-500.0,0.00013698,2]
[353035786,1739503832328,-500.0,0.00013698,2]
[353035787,1739503832338,-500.0,0.00013698,2]
[353035788,1739503832348,-500.0,0.00013698,2]
[353035789,1739503832357,-505.68450881,0.00013698,2]
[353035790,1739503832367,-500.0,0.00013698,2]
[353035791,1739503832377,-500.0,0.00013698,2]
[353035792,1739503832386,-507.00174383,0.00013698,2]
[353035793,1739503832396,-399.30482207,0.00013698,2]
[353035794,1739503832406,-500.0,0.00013698,2]
[353035795,1739503832416,-500.0,0.00013698,2]
[353035796,1739503832426,-500.0,0.00013698,2]
[353035797,1739503832435,-500.0,0.00013698,2]
[353035798,1739503832445,-500.0,0.00013698,2]
[353035799,1739503832454,-500.0,0.00013698,2]
[353035800,1739503832464,-500.0,0.00013698,2]
[353035801,1739503832473,-500.0,0.00013698,2]
[353035802,1739503832483,-500.0,0.00013698,2]
[353035803,1739503832494,-500.0,0.00013698,2]
[353035804,1739503832504,-500.0,0.00013698,2]
[353035805,1739503832514,-500.0,0.00013698,2]
[353035806,1739503832525,-500.0,0.00013698,2]
[353035807,1739503832534,-647.57322421,0.00013698,2]
[353035808,1739503832544,-500.0,0.00013698,2]
[353035809,1739503832554,-578.68,0.00013698,2]